[Event "Titled Tuesday Blitz November 01 Late 2022"]
[White "Voigt, Martin"]
[Black "Marcolino, Daniel Mattos"]
[WhiteFideId "4607228"]
[BlackFideId "2106841"]
[WhiteElo "2356"]
[BlackElo "2095"]
[Result "1/2-1/2"]
[Round "11"]
[TimeControl "180+1"]
[Date "2022.11.02"]
[WhiteClock "0:00:03"]
[BlackClock "0:00:37"]

1. d4 {[%clk 0:03:00]}  Nf6 {[%clk 0:02:59]} 2. Nc3 {[%clk 0:02:59]}  d5 {[%clk 0:02:58]} 3. Bf4 {[%clk 0:02:58]}  c5 {[%clk 0:02:50]} 4. e3 {[%clk 0:02:52]}  cxd4 {[%clk 0:02:47]} 5. exd4 {[%clk 0:02:52]}  a6 {[%clk 0:02:47]} 6. Bd3 {[%clk 0:02:44]}  Nc6 {[%clk 0:02:47]} 7. Nge2 {[%clk 0:02:39]}  Bg4 {[%clk 0:02:47]} 8. Qd2 {[%clk 0:02:32]}  e6 {[%clk 0:02:46]} 9. f3 {[%clk 0:02:28]}  Bh5 {[%clk 0:02:46]} 10. g4 {[%clk 0:02:10]}  Bg6 {[%clk 0:02:46]} 11. h4 {[%clk 0:02:11]}  Bxd3 {[%clk 0:02:45]} 12. Qxd3 {[%clk 0:02:11]}  h5 {[%clk 0:02:37]} 13. Bg5 {[%clk 0:02:04]}  Be7 {[%clk 0:02:34]} 14. Bxf6 {[%clk 0:02:01]}  Bxf6 {[%clk 0:02:33]} 15. g5 {[%clk 0:02:02]}  Be7 {[%clk 0:02:34]} 16. O-O-O {[%clk 0:01:56]}  Qc7 {[%clk 0:02:08]} 17. g6 {[%clk 0:01:48]}  Bf6 {[%clk 0:01:58]} 18. gxf7+ {[%clk 0:01:44]}  Qxf7 {[%clk 0:01:58]} 19. Kb1 {[%clk 0:01:40]}  O-O-O {[%clk 0:01:58]} 20. Na4 {[%clk 0:01:33]}  Kb8 {[%clk 0:01:53]} 21. Nc5 {[%clk 0:01:32]}  Qe7 {[%clk 0:01:44]} 22. c3 {[%clk 0:01:27]}  Bxh4 {[%clk 0:01:37]} 23. Nf4 {[%clk 0:01:13]}  e5 {[%clk 0:01:32]} 24. Ng6 {[%clk 0:01:13]}  Qf6 {[%clk 0:01:26]} 25. Nxh4 {[%clk 0:01:09]}  exd4 {[%clk 0:01:22]} 26. cxd4 {[%clk 0:01:06]}  g5 {[%clk 0:01:18]} 27. Ng2 {[%clk 0:00:53]}  h4 {[%clk 0:01:04]} 28. Qc3 {[%clk 0:00:28]}  Ka7 {[%clk 0:01:00]} 29. Qb3 {[%clk 0:00:14]}  Rh7 {[%clk 0:00:57]} 30. Rd3 {[%clk 0:00:11]}  Nxd4 {[%clk 0:00:56]} 31. Qc3 {[%clk 0:00:11]}  Rc7 {[%clk 0:00:42]} 32. Rxd4 {[%clk 0:00:08]}  Rdc8 {[%clk 0:00:43]} 33. b4 {[%clk 0:00:08]}  b6 {[%clk 0:00:43]} 34. Rd3 {[%clk 0:00:05]}  Qxc3 {[%clk 0:00:41]} 35. Rxc3 {[%clk 0:00:05]}  bxc5 {[%clk 0:00:41]} 36. bxc5 {[%clk 0:00:05]}  Rxc5 {[%clk 0:00:42]} 37. Rxc5 {[%clk 0:00:05]}  Rxc5 {[%clk 0:00:43]} 38. Ne3 {[%clk 0:00:04]}  Rc3 {[%clk 0:00:42]} 39. Nxd5 {[%clk 0:00:02]}  Rxf3 {[%clk 0:00:43]} 40. Kc2 {[%clk 0:00:01]}  h3 {[%clk 0:00:42]} 41. Kd2 {[%clk 0:00:01]}  g4 {[%clk 0:00:43]} 42. Ke2 {[%clk 0:00:01]}  Rg3 {[%clk 0:00:38]} 43. Ne3 {[%clk 0:00:01]}  Kb6 {[%clk 0:00:37]} 44. Nxg4 {[%clk 0:00:01]}  Rxg4 {[%clk 0:00:37]} 45. Rxh3 {[%clk 0:00:02]}  Kb5 {[%clk 0:00:36]} 46. Rh5+ {[%clk 0:00:01]}  Kb6 {[%clk 0:00:35]} 47. Rh6+ {[%clk 0:00:02]}  Kb5 {[%clk 0:00:36]} 48. Rh5+ {[%clk 0:00:02]}  Kb6 {[%clk 0:00:36]} 49. Rh6+ {[%clk 0:00:03]}  Kb5 {[%clk 0:00:37]} 50. Rh5+ {[%clk 0:00:03]} 1/2-1/2


[Site "https://www.chess.com"]

[Event "Titled Tuesday Blitz November 01 Late 2022"]
[White "Wessendorf, Thomas, Dr."]
[Black "Jimenez Fernandez, Rebeca"]
[WhiteFideId "4604270"]
[BlackFideId "32070934"]
[WhiteElo "2280"]
[BlackElo "1946"]
[Result "0-1"]
[Round "11"]
[TimeControl "180+1"]
[Date "2022.11.02"]
[WhiteClock "0:01:15"]
[BlackClock "0:00:39"]

1. e4 {[%clk 0:03:00]}  c5 {[%clk 0:02:59]} 2. Nf3 {[%clk 0:03:00]}  d6 {[%clk 0:02:59]} 3. d4 {[%clk 0:02:59]}  cxd4 {[%clk 0:03:00]} 4. Nxd4 {[%clk 0:02:59]}  Nf6 {[%clk 0:03:00]} 5. Nc3 {[%clk 0:03:00]}  g6 {[%clk 0:02:59]} 6. Be3 {[%clk 0:02:59]}  Bg7 {[%clk 0:02:59]} 7. f3 {[%clk 0:02:59]}  O-O {[%clk 0:02:59]} 8. Qd2 {[%clk 0:03:00]}  Nc6 {[%clk 0:02:59]} 9. Bc4 {[%clk 0:03:00]}  Bd7 {[%clk 0:03:00]} 10. h4 {[%clk 0:02:58]}  Rc8 {[%clk 0:02:59]} 11. Bb3 {[%clk 0:02:58]}  Ne5 {[%clk 0:02:59]} 12. O-O-O {[%clk 0:02:57]}  Nc4 {[%clk 0:02:54]} 13. Bxc4 {[%clk 0:02:57]}  Rxc4 {[%clk 0:02:55]} 14. h5 {[%clk 0:02:54]}  Qa5 {[%clk 0:02:52]} 15. hxg6 {[%clk 0:02:43]}  fxg6 {[%clk 0:02:51]} 16. Nb3 {[%clk 0:02:40]}  Qa6 {[%clk 0:02:35]} 17. Nd5 {[%clk 0:02:29]}  Nxd5 {[%clk 0:02:06]} 18. Qxd5+ {[%clk 0:02:26]}  e6 {[%clk 0:02:06]} 19. Qxd6 {[%clk 0:02:20]}  Qxa2 {[%clk 0:02:06]} 20. Rd3 {[%clk 0:02:03]}  Qxb2+ {[%clk 0:01:57]} 21. Kd1 {[%clk 0:01:55]}  Qb1+ {[%clk 0:01:27]} 22. Ke2 {[%clk 0:01:49]}  Rxc2+ {[%clk 0:01:22]} 23. Nd2 {[%clk 0:01:40]}  Qxh1 {[%clk 0:01:21]} 24. Qxd7 {[%clk 0:01:39]}  Qxg2+ {[%clk 0:01:21]} 25. Bf2 {[%clk 0:01:38]}  Rxd2+ {[%clk 0:01:04]} 26. Rxd2 {[%clk 0:01:29]}  Qxf3+ {[%clk 0:01:05]} 27. Kf1 {[%clk 0:01:22]}  Qh1+ {[%clk 0:01:00]} 28. Ke2 {[%clk 0:01:19]}  Qxe4+ {[%clk 0:00:58]} 29. Kd1 {[%clk 0:01:17]}  Qb1+ {[%clk 0:00:54]} 30. Ke2 {[%clk 0:01:16]}  Qe4+ {[%clk 0:00:45]} 31. Kd1 {[%clk 0:01:15]}  Bh6 {[%clk 0:00:39]} 0-1


[Site "https://www.chess.com"]

[Event "Titled Tuesday Blitz November 01 Late 2022"]
[White "Zilleruelo Irizarry, Diego"]
[Black "Ambartsumova, Karina"]
[WhiteFideId "3101460"]
[BlackFideId "4166299"]
[WhiteElo "1998"]
[BlackElo "2299"]
[Result "1/2-1/2"]
[Round "11"]
[TimeControl "180+1"]
[Date "2022.11.02"]
[WhiteClock "0:00:04"]
[BlackClock "0:00:05"]

1. e4 {[%clk 0:03:00]}  e5 {[%clk 0:02:59]} 2. Nf3 {[%clk 0:03:00]}  Nc6 {[%clk 0:02:59]} 3. Bb5 {[%clk 0:03:00]}  Nf6 {[%clk 0:02:57]} 4. O-O {[%clk 0:03:00]}  Nxe4 {[%clk 0:02:55]} 5. Re1 {[%clk 0:03:00]}  Nd6 {[%clk 0:02:55]} 6. Nxe5 {[%clk 0:02:56]}  Nxe5 {[%clk 0:02:49]} 7. Rxe5+ {[%clk 0:02:54]}  Be7 {[%clk 0:02:50]} 8. Bf1 {[%clk 0:02:55]}  O-O {[%clk 0:02:49]} 9. d4 {[%clk 0:02:55]}  Bf6 {[%clk 0:02:47]} 10. Re1 {[%clk 0:02:55]}  Re8 {[%clk 0:02:47]} 11. c3 {[%clk 0:02:52]}  c6 {[%clk 0:02:39]} 12. Bf4 {[%clk 0:02:51]}  Rxe1 {[%clk 0:02:36]} 13. Qxe1 {[%clk 0:02:52]}  Nf5 {[%clk 0:02:31]} 14. Nd2 {[%clk 0:02:50]}  d5 {[%clk 0:02:30]} 15. Bd3 {[%clk 0:02:47]}  g6 {[%clk 0:02:16]} 16. Nf3 {[%clk 0:02:43]}  Ng7 {[%clk 0:02:12]} 17. h3 {[%clk 0:02:37]}  Bf5 {[%clk 0:02:09]} 18. Qd2 {[%clk 0:02:29]}  Qb6 {[%clk 0:02:03]} 19. Bxf5 {[%clk 0:02:24]}  Nxf5 {[%clk 0:02:04]} 20. g4 {[%clk 0:02:22]}  Ng7 {[%clk 0:01:55]} 21. a4 {[%clk 0:01:36]}  a5 {[%clk 0:01:51]} 22. Re1 {[%clk 0:01:32]}  Re8 {[%clk 0:01:18]} 23. Rxe8+ {[%clk 0:01:03]}  Nxe8 {[%clk 0:01:19]} 24. Qc2 {[%clk 0:01:03]}  Qd8 {[%clk 0:01:12]} 25. Kg2 {[%clk 0:01:02]}  Nd6 {[%clk 0:01:05]} 26. Be5 {[%clk 0:00:58]}  Ne4 {[%clk 0:00:58]} 27. Qe2 {[%clk 0:00:47]}  Kg7 {[%clk 0:00:44]} 28. Bxf6+ {[%clk 0:00:28]}  Qxf6 {[%clk 0:00:45]} 29. Nd2 {[%clk 0:00:28]}  Nd6 {[%clk 0:00:30]} 30. Qe5 {[%clk 0:00:23]}  h6 {[%clk 0:00:19]} 31. f4 {[%clk 0:00:21]}  Qxe5 {[%clk 0:00:13]} 32. fxe5 {[%clk 0:00:21]}  Nc8 {[%clk 0:00:14]} 33. Kf3 {[%clk 0:00:22]}  Kf8 {[%clk 0:00:13]} 34. Ke3 {[%clk 0:00:20]}  g5 {[%clk 0:00:12]} 35. Nb3 {[%clk 0:00:19]}  b6 {[%clk 0:00:11]} 36. Nd2 {[%clk 0:00:19]}  Ke7 {[%clk 0:00:12]} 37. Nf1 {[%clk 0:00:16]}  f6 {[%clk 0:00:11]} 38. exf6+ {[%clk 0:00:13]}  Kxf6 {[%clk 0:00:11]} 39. Ng3 {[%clk 0:00:14]}  Nd6 {[%clk 0:00:10]} 40. b3 {[%clk 0:00:10]}  b5 {[%clk 0:00:11]} 41. Nh5+ {[%clk 0:00:08]}  Ke6 {[%clk 0:00:10]} 42. Ng3 {[%clk 0:00:09]}  bxa4 {[%clk 0:00:10]} 43. bxa4 {[%clk 0:00:09]}  Nc4+ {[%clk 0:00:11]} 44. Kd3 {[%clk 0:00:10]}  Nb2+ {[%clk 0:00:11]} 45. Kc2 {[%clk 0:00:10]}  Nxa4 {[%clk 0:00:12]} 46. Kb3 {[%clk 0:00:11]}  Nb6 {[%clk 0:00:12]} 47. Nf5 {[%clk 0:00:12]}  a4+ {[%clk 0:00:12]} 48. Kb4 {[%clk 0:00:12]}  Kf6 {[%clk 0:00:10]} 49. Nxh6 {[%clk 0:00:12]}  Ke6 {[%clk 0:00:10]} 50. Nf5 {[%clk 0:00:12]}  Kf6 {[%clk 0:00:10]} 51. Ne3 {[%clk 0:00:12]}  Ke6 {[%clk 0:00:10]} 52. Nc2 {[%clk 0:00:09]}  Kd6 {[%clk 0:00:09]} 53. Ne1 {[%clk 0:00:09]}  Ke6 {[%clk 0:00:09]} 54. Nf3 {[%clk 0:00:09]}  Kf6 {[%clk 0:00:08]} 55. Ne5 {[%clk 0:00:10]}  Ke6 {[%clk 0:00:03]} 56. Nxc6 {[%clk 0:00:10]}  Kd6 {[%clk 0:00:03]} 57. Ne5 {[%clk 0:00:10]}  Ke6 {[%clk 0:00:03]} 58. Nf3 {[%clk 0:00:10]}  Kf6 {[%clk 0:00:03]} 59. Nd2 {[%clk 0:00:07]}  Ke6 {[%clk 0:00:03]} 60. Nb1 {[%clk 0:00:08]}  Kd6 {[%clk 0:00:03]} 61. Na3 {[%clk 0:00:08]}  Ke6 {[%clk 0:00:03]} 62. Kb5 {[%clk 0:00:07]}  Nd7 {[%clk 0:00:02]} 63. Kxa4 {[%clk 0:00:07]}  Nf6 {[%clk 0:00:03]} 64. Kb5 {[%clk 0:00:06]}  Ne4 {[%clk 0:00:03]} 65. c4 {[%clk 0:00:07]}  Nc3+ {[%clk 0:00:03]} 66. Kc5 {[%clk 0:00:05]}  Ne4+ {[%clk 0:00:03]} 67. Kb4 {[%clk 0:00:05]}  dxc4 {[%clk 0:00:03]} 68. Kxc4 {[%clk 0:00:04]}  Nf2 {[%clk 0:00:03]} 69. d5+ {[%clk 0:00:05]}  Kd7 {[%clk 0:00:04]} 70. Nb5 {[%clk 0:00:04]}  Nxh3 {[%clk 0:00:04]} 71. Nd4 {[%clk 0:00:04]}  Nf2 {[%clk 0:00:05]} 72. Nf3 {[%clk 0:00:04]}  Nxg4 {[%clk 0:00:05]} 73. Nxg5 {[%clk 0:00:05]}  Nf6 {[%clk 0:00:05]} 74. Ne6 {[%clk 0:00:04]}  Nxd5 {[%clk 0:00:05]} 1/2-1/2


[Site "https://www.chess.com"]

[Event "Titled Tuesday Blitz November 01 Late 2022"]
[White "Zivkovic, Nemanja"]
[Black "Baskakov, Egor"]
[WhiteFideId "942154"]
[BlackFideId "24197866"]
[WhiteElo "2372"]
[BlackElo "2211"]
[Result "1/2-1/2"]
[Round "11"]
[TimeControl "180+1"]
[Date "2022.11.01"]
[WhiteClock "0:00:04"]
[BlackClock "0:00:15"]

1. e4 {[%clk 0:02:52]}  c5 {[%clk 0:03:00]} 2. Nf3 {[%clk 0:02:52]}  Nf6 {[%clk 0:03:00]} 3. Nc3 {[%clk 0:02:49]}  d5 {[%clk 0:03:00]} 4. exd5 {[%clk 0:02:44]}  Nxd5 {[%clk 0:03:01]} 5. Nxd5 {[%clk 0:02:44]}  Qxd5 {[%clk 0:03:02]} 6. g3 {[%clk 0:02:44]}  Bg4 {[%clk 0:03:01]} 7. Bg2 {[%clk 0:02:44]}  Nc6 {[%clk 0:03:02]} 8. h3 {[%clk 0:02:39]}  Bh5 {[%clk 0:02:58]} 9. g4 {[%clk 0:02:36]}  Bg6 {[%clk 0:02:58]} 10. O-O {[%clk 0:02:36]}  h5 {[%clk 0:02:59]} 11. Nh4 {[%clk 0:02:32]}  Be4 {[%clk 0:02:56]} 12. Bxe4 {[%clk 0:01:22]}  Qxe4 {[%clk 0:02:53]} 13. d3 {[%clk 0:01:20]}  Qd5 {[%clk 0:02:20]} 14. g5 {[%clk 0:01:18]}  g6 {[%clk 0:02:10]} 15. Qf3 {[%clk 0:01:15]}  Qd7 {[%clk 0:02:10]} 16. Be3 {[%clk 0:01:13]}  b6 {[%clk 0:01:56]} 17. d4 {[%clk 0:01:08]}  e6 {[%clk 0:01:40]} 18. dxc5 {[%clk 0:01:05]}  Bxc5 {[%clk 0:01:36]} 19. Rad1 {[%clk 0:01:00]}  Qc7 {[%clk 0:01:35]} 20. Bxc5 {[%clk 0:00:52]}  bxc5 {[%clk 0:01:36]} 21. Qc3 {[%clk 0:00:53]}  Qe5 {[%clk 0:01:30]} 22. Qxe5 {[%clk 0:00:43]}  Nxe5 {[%clk 0:01:31]} 23. Rfe1 {[%clk 0:00:43]}  Nc4 {[%clk 0:01:32]} 24. b3 {[%clk 0:00:43]}  Nb6 {[%clk 0:01:32]} 25. Nf3 {[%clk 0:00:39]}  Ke7 {[%clk 0:01:26]} 26. Ne5 {[%clk 0:00:38]}  Rac8 {[%clk 0:01:23]} 27. c4 {[%clk 0:00:39]}  Rc7 {[%clk 0:01:21]} 28. Re3 {[%clk 0:00:37]}  Nd7 {[%clk 0:01:19]} 29. Nd3 {[%clk 0:00:32]}  Rd8 {[%clk 0:01:09]} 30. Nf4 {[%clk 0:00:31]}  Nb6 {[%clk 0:01:02]} 31. Red3 {[%clk 0:00:28]}  Rcd7 {[%clk 0:00:58]} 32. Kg2 {[%clk 0:00:28]}  e5 {[%clk 0:00:28]} 33. Rxd7+ {[%clk 0:00:26]}  Rxd7 {[%clk 0:00:29]} 34. Rxd7+ {[%clk 0:00:26]}  Kxd7 {[%clk 0:00:27]} 35. Nd3 {[%clk 0:00:26]}  Kd6 {[%clk 0:00:27]} 36. Kf3 {[%clk 0:00:26]}  Nd7 {[%clk 0:00:25]} 37. a3 {[%clk 0:00:22]}  a5 {[%clk 0:00:23]} 38. Ke3 {[%clk 0:00:18]}  f5 {[%clk 0:00:21]} 39. f3 {[%clk 0:00:09]}  Nb6 {[%clk 0:00:20]} 40. a4 {[%clk 0:00:07]}  Nc8 {[%clk 0:00:18]} 41. h4 {[%clk 0:00:07]}  Ne7 {[%clk 0:00:18]} 42. f4 {[%clk 0:00:05]}  Nc6 {[%clk 0:00:19]} 43. fxe5+ {[%clk 0:00:03]}  Nxe5 {[%clk 0:00:19]} 44. Nf4 {[%clk 0:00:03]}  Ng4+ {[%clk 0:00:18]} 45. Kd2 {[%clk 0:00:03]}  Ne5 {[%clk 0:00:19]} 46. Ke3 {[%clk 0:00:03]}  Ng4+ {[%clk 0:00:18]} 47. Kd2 {[%clk 0:00:04]}  Ne5 {[%clk 0:00:15]} 48. Ke3 {[%clk 0:00:04]} 1/2-1/2


[Site "https://www.chess.com"]